[Event "Cappelle op 31st"]
[Site "Cappelle la Grande"]
[Date "2015.03.07"]
[Round "9"]
[White "Blomqvist, Erik"]
[Black "Azarov, Sergei Nikolaevich"]
[Result "1/2-1/2"]
[ECO "B76"]
[WhiteElo "2515"]
[BlackElo "2636"]
[Annotator "RR"]
[PlyCount "81"]
[EventDate "2015.02.28"]
[EventType "swiss"]
[EventRounds "9"]
[EventCountry "FRA"]
[SourceTitle "EXT 2016"]
[Source "ChessBase"]
[SourceDate "2015.10.08"]
[SourceVersion "1"]
[SourceVersionDate "2015.10.08"]
[SourceQuality "1"]
[TimeControl "40/5400+30:1800+30"]

1. e4 {[%emt 0:00:00]} c5 {[%emt 0:00:00]} 2. Nf3 {[%emt 0:00:00]} d6 {[%emt 0:
00:11]} 3. d4 {[%emt 0:00:00]} cxd4 {[%emt 0:00:14]} 4. Nxd4 {[%emt 0:00:05]}
Nf6 {[%emt 0:00:08]} 5. Nc3 {[%emt 0:00:07]} g6 {[%emt 0:00:14]} 6. Be3 {
[%emt 0:00:10]} Bg7 {[%emt 0:00:15]} 7. f3 {[%emt 0:00:09]} O-O {[%emt 0:00:21]
} 8. Qd2 {[%emt 0:00:10]} Nc6 {[%emt 0:00:18]} 9. g4 $5 {[%emt 0:00:25]} (9.
Bc4) (9. O-O-O) 9... Nxd4 {[%emt 0:04:31]} 10. Bxd4 {[%emt 0:00:10]} Qa5 {
[%emt 0:00:30]} 11. O-O-O {[%emt 0:04:08]} Be6 {[%emt 0:02:11]} 12. a3 {
[%emt 0:00:17]} Rab8 {[%emt 0:10:45][%cal Gb7b5,Gb5b4] La partie s'annonce
tendue avec des chances réciproques} 13. Kb1 {[%emt 0:00:40]} (13. h4 b5 14.
Nd5 Qxd2+ 15. Rxd2 Bxd5 16. exd5 a5 {[%cal Gb5b4]} 17. Bh3 b4 $132 {Socko,B 
(2435)-Macieja,B (2465) POL-ch 54th Sopot 1997 (5) 1/2}) 13... Rfc8 {[%emt 0:
01:39]} 14. h4 {[%emt 0:00:15]} b5 {[%emt 0:01:38]} 15. Nd5 {[%emt 0:00:21]}
Qxd2 {[%emt 0:00:37]} 16. Rxd2 {[%emt 0:00:07]} Bxd5 {[%emt 0:00:39]} 17. exd5
{[%emt 0:00:08] Le suédois continue de jouer à tempo} a5 {[%emt 0:07:49]} 18.
h5 {[%emt 0:00:23]} (18. Ba7 Rb7 19. Bf2 Nd7 20. a4 bxa4 {0-1 (20) Horvath,A 
(2531)-Baumegger,S (2469) Zalakaros 2014}) 18... Nd7 $5 {[%emt 0:04:53]} 19. g5
{[%emt 0:00:23] Les Blancs continuent de suivre la préparation maison} (19.
Bxg7 Kxg7 20. h6+ Kf8 $132) 19... Ne5 {[%emt 0:29:21] Une position crittique} (
19... Nb6 {[%cal Gb6c4,Gb6d5]} 20. Bxb5 (20. hxg6 hxg6 21. Bxg7 Kxg7 22. Rdh2
Rg8 {[%cal Gg7f8]} 23. Rh7+ Kf8 24. Bxb5 Nxd5 25. Bc4 Nc3+ 26. Kc1 {[%cal
Gh7f7]} d5 $13) 20... Nxd5) 20. Be2 $146 {[%emt 0:20:24]} (20. Rf2 b4 21. a4
Ng4 22. Rg2 Bxd4 23. Rxg4 Bg7 24. Bb5 Rc5 25. Rd1 Rbc8 26. Rd2 Rd8 27. f4 Kf8
28. Rh4 e6 29. dxe6 fxe6 30. Bd3 Kf7 31. Rh3 Re8 32. Re3 Re7 33. Rde2 Bd4 34.
Rh3 Bg7 35. Ree3 Rc8 36. Re1 Ree8 37. Rhe3 d5 38. R3e2 Rcd8 39. Rf1 Rf8 40. Rh2
Rc8 41. Re1 Rh8 42. Bb5 Rcd8 43. Ka2 Rhf8 44. Bd3 Rd6 45. Kb3 Rd7 46. Bb5 Re7
47. Rhe2 Rd8 48. Ba6 Rd6 49. Bd3 Rc7 {Felytin,L (2446)-Saenko,O (2481) ICCF
email 2011 1/2-1/2}) 20... Nc4 {[%emt 0:02:37]} 21. Rd3 {[%emt 0:00:13]} (21.
Rdd1 {Karjakin,S (2753)-Nakamura,H (2799) FIDE GP Khanty-Mansiysk 2015 (1) 1/2}
) 21... b4 $132 {[%emt 0:05:07]} 22. a4 {[%emt 0:01:02]} Nb6 {[%emt 0:06:42]}
23. b3 {[%emt 0:11:31][%csl Rc3]} (23. Bxb6 Rxb6 24. Re3 Kf8 25. Bb5 {[%cal
Gb5c6]} Rc5 26. Rd3 (26. Bc6)) 23... Rc7 {[%emt 0:04:40]} 24. Bf2 {[%emt 0:22:
35]} Rbc8 {[%emt 0:03:53]} 25. h6 {[%emt 0:14:12]} Bh8 {[%emt 0:02:14]} 26. c4
$5 {[%emt 0:00:14] Entraine des grosses complications} bxc3 {[%emt 0:01:34]}
27. Bxb6 {[%emt 0:00:17]} Rb7 {[%emt 0:00:02]} 28. Bd4 {[%emt 0:08:54]} Rxb3+ {
[%emt 0:00:15]} 29. Kc1 {[%emt 0:00:27]} Bxd4 {[%emt 0:01:12]} 30. Rxd4 {
[%emt 0:00:04]} c2 $13 {[%emt 0:00:41][%cal Gb3b1]} 31. Kd2 {[%emt 0:00:22]}
c1=Q+ $1 {[%emt 0:00:17]} 32. Rxc1 {[%emt 0:00:04]} Rb2+ {[%emt 0:00:04]} 33.
Kd1 {[%emt 0:00:20]} Rxc1+ {[%emt 0:00:06]} 34. Kxc1 {[%emt 0:00:05]} Rxe2 {
[%emt 0:00:03] La structure avantage les Noirs mais le Kg8 est mal placé et
le Pa5 peut tomber} 35. Rc4 $1 {[%emt 0:00:06][%csl Ra5,Rg8]} f6 $1 {[%emt 0:
00:15]} 36. gxf6 {[%emt 0:05:37]} exf6 {[%emt 0:00:02]} 37. Rc7 {[%emt 0:00:25]
[%csl Rg8,Rh7][%cal Gc7g7]} Rh2 {[%emt 0:02:14]} 38. Rc8+ {[%emt 0:00:22]} Kf7
{[%emt 0:00:05]} 39. Rc7+ {[%emt 0:00:06]} Kg8 {[%emt 0:00:23]} 40. Rc8+ {
[%emt 0:00:00]} Kf7 {[%emt 0:00:00]} 41. Rc7+ {[%emt 0:00:32] Une belle partie
mais la nulle n'arrange aucune des adversaires qui devaient gagner dans cette
dernière ronde} 1/2-1/2